Workbook

Sheet Listino Comm
B1: Prodotto/Servizio | C1: Agente | D1: Senior | E1: Teleseller
B2: SIM Abbonamento MNP | C2: € 40 | D2: € 44 | E2: =C2/2 -> € 20
B3: SIM Abbonamento nuove | C3: € 25 | D3: € 28 | E3: =C3/2 -> € 13
B4: SIM ricaricabili MNP | C4: € 15 | D4: € 17 | E4: € 8
B5: SIM ricaricabili nuove | C5: € 5 | D5: € 6 | E5: € 3
B6: Opz. Broadband Medium | C6: € 5 | D6: € 6 | E6: € 3
B7: OPz. Broadband Large | C7: € 7 | D7: € 8 | E7: € 4
B8: Opz. Broadband XL | C8: € 15 | D8: € 17 | E8: € 8
B9: Opz. RTE/BB | C9: € 10 | D9: € 11 | E9: € 5
B10: Telefono Fisso | C10: € 25 | D10: € 28 | E10: € 13
B11: Internet Premium | C11: € 5 | D11: € 6 | E11: € 3
B12: Broadband Small | C12: € 5 | D12: € 6 | E12: € 3
B13: Broadband VF Full Optional | C13: € 5 | D13: € 6 | E13: € 3
B14: Servizio Fax | C14: € 5 | D14: € 6 | E14: € 3
B15: Broadband Large | C15: € 15 | D15: € 17 | E15: € 8
B16: Broadband XL | C16: € 25 | D16: € 28 | E16: € 13
B17: Broadband UL | C17: € 35 | D17: € 39 | E17: € 18
B18: Broadband Station | C18: € 10 | D18: € 11 | E18: € 5
B19: VRU (tutte) | C19: € 120 | D19: € 132 | E19: € 60
B20: VRU int. voce oltre 4° | C20: € 10 | D20: € 11 | E20: € 5
B21: VRU interno fax | C21: € 10 | D21: € 11 | E21: € 5
B22: VF ADSL GN | C22: € 15 | D22: € 17 | E22: € 8
B23: VF ADSL GNP | C23: € 50 | D23: € 55 | E23: € 25
B24: Pack I-Phone only | C24: € 5 | D24: € 6 | E24: € 3
B25: Pack I-Phone | C25: € 10 | D25: € 11 | E25: € 5
B26: Mobile start | C26: € 5 | D26: € 6 | E26: € 3

Sheet Dettaglio
A1: RETE VENDITA | O1: TELESELLING | AC1: TOTALI
A3: Produzione | I3: Quantità | O3: Produzione | W3: Quantità | AC3: Produzione | AK3: Quantità
A4: Sett | B4: Sim | C4: Vik | D4: Vru | E4: St. Gnp | G4: Agenti | I4: Sim | J4: Vik | K4: Vru | L4: St. Gnp | O4: Sett | P4: Sim | Q4: Vik | R4: Vru | S4: St. Gnp | U4: Telelling | W4: Sim | X4: Vik | Y4: Vru | Z4: St. Gnp | AC4: Sett | AD4: Sim | AE4: Vik | AF4: Vru | AG4: St. Gnp | AI4: Totale | AK4: Sim | AL4: Vik | AM4: Vru | AN4: St. Gnp
A5: Base | B5: 20 | C5: 6 | D5: 0 | E5: 5 | G5: 4 | I5: =B5*G5 -> 80 | J5: =C5*G5 -> 24 | K5: =D5*G5 -> 0 | L5: =E5*G5 -> 20 | O5: Base | P5: 20 | Q5: 6 | R5: 0 | S5: 5 | U5: 2 | W5: =P5*U5 -> 40 | X5: =Q5*U5 -> 12 | Y5: =R5*U5 -> 0 | Z5: =S5*U5 -> 10 | AC5: Base | AD5: 20 | AE5: 6 | AF5: 0 | AG5: 5 | AI5: =G5+U5 -> 6 | AK5: =AD5*AI5 -> 120 | AL5: =AE5*AI5 -> 36 | AM5: =AF5*AI5 -> 0 | AN5: =AG5*AI5 -> 30
A6: Adw | B6: 30 | C6: 8 | D6: 1 | E6: 5 | G6: 0 | I6: 0 | J6: 0 | K6: 0 | L6: 0 | O6: Adw | P6: 30 | Q6: 8 | R6: 1 | S6: 5 | U6: 0 | W6: 0 | X6: 0 | Y6: 0 | Z6: 0 | AC6: Adw | AD6: 30 | AE6: 8 | AF6: 1 | AG6: 5 | AI6: =G6+U6 -> 0 | AK6: 0 | AL6: 0 | AM6: 0 | AN6: 0
A7: Senior | B7: 40 | C7: 12 | D7: 2 | E7: 10 | G7: 0 | I7: 0 | J7: 0 | K7: 0 | L7: 0 | O7: Senior | P7: 40 | Q7: 12 | R7: 2 | S7: 10 | U7: 1 | W7: =P7*U7 -> 40 | X7: =Q7*U7 -> 12 | Y7: =R7*U7 -> 2 | Z7: =S7*U7 -> 10 | AC7: Senior | AD7: 40 | AE7: 12 | AF7: 2 | AG7: 10 | AI7: 1 | AK7: =AD7*AI7 -> 40 | AL7: =AE7*AI7 -> 12 | AM7: =AF7*AI7 -> 2 | AN7: =AG7*AI7 -> 10
G9: Pezzi | I9: =SUM(I5:I8) -> 80 | J9: =SUM(J5:J8) -> 24 | K9: 0 | L9: 20 | M9: =SUM(I9:L9) -> 124 | U9: Pezzi | W9: =SUM(W5:W8) -> 80 | X9: =SUM(X5:X8) -> 24 | Y9: =SUM(Y5:Y8) -> 2 | Z9: =SUM(Z5:Z8) -> 20 | AA9: =SUM(W9:Z9) -> 126 | AI9: Pezzi | AK9: =SUM(AK5:AK8) -> 160 | AL9: =SUM(AL5:AL8) -> 48 | AM9: =SUM(AM5:AM8) -> 2 | AN9: =SUM(AN5:AN8) -> 40 | AO9: =SUM(AK9:AN9) -> 250
G11: Pti | I11: =I9*3 -> 240 | J11: =J9*3 -> 72 | K11: =K9*4 -> 0 | L11: =L9*5 -> 100 | M11: =SUM(I11:L11) -> 412 | U11: Pti | W11: =W9*3 -> 240 | X11: =X9*3 -> 72 | Y11: =Y9*4 -> 8 | Z11: =Z9*5 -> 100 | AA11: =SUM(W11:Z11) -> 420 | AI11: Pti | AK11: =AK9*3 -> 480 | AL11: =AL9*3 -> 144 | AM11: =AM9*4 -> 8 | AN11: =AN9*5 -> 200 | AO11: =SUM(AK11:AN11) -> 832
A12: Produzione | I12: Quantità | O12: Produzione | W12: Quantità | AC12: Produzione | AK12: Quantità
A13: Ott | B13: Sim | C13: Vik | D13: Vru | E13: St. Gnp | G13: Agenti | I13: Sim | J13: Vik | K13: Vru | L13: St. Gnp | O13: Ott | P13: Sim | Q13: Vik | R13: Vru | S13: St. Gnp | U13: Telelling | W13: Sim | X13: Vik | Y13: Vru | Z13: St. Gnp | AC13: Ott | AD13: Sim | AE13: Vik | AF13: Vru | AG13: St. Gnp | AI13: Totale | AK13: Sim | AL13: Vik | AM13: Vru | AN13: St. Gnp
A14: Base | B14: 20 | C14: 6 | D14: 0 | E14: 5 | G14: 2 | I14: =B14*G14 -> 40 | J14: =C14*G14 -> 12 | K14: =D14*G14 -> 0 | L14: =E14*G14 -> 10 | O14: Base | P14: 20 | Q14: 6 | R14: 0 | S14: 5 | U14: 0 | W14: =P14*U14 -> 0 | X14: =Q14*U14 -> 0 | Y14: =R14*U14 -> 0 | Z14: =S14*U14 -> 0 | AC14: Base | AD14: 20 | AE14: 6 | AF14: 0 | AG14: 5 | AI14: =G14+U14 -> 2 | AK14: =AD14*AI14 -> 40 | AL14: =AE14*AI14 -> 12 | AM14: =AF14*AI14 -> 0 | AN14: =AG14*AI14 -> 10
A15: Adw | B15: 30 | C15: 8 | D15: 1 | E15: 5 | G15: 4 | I15: =G15*B15 -> 120 | J15: =G15*C15 -> 32 | K15: =D15*G15 -> 4 | L15: =E15*G15 -> 20 | O15: Adw | P15: 30 | Q15: 8 | R15: 1 | S15: 5 | U15: 2 | W15: =U15*P15 -> 60 | X15: =U15*Q15 -> 16 | Y15: =R15*U15 -> 2 | Z15: =S15*U15 -> 10 | AC15: Adw | AD15: 30 | AE15: 8 | AF15: 1 | AG15: 5 | AI15: 6 | AK15: =AI15*AD15 -> 180 | AL15: =AI15*AE15 -> 48 | AM15: =AF15*AI15 -> 6 | AN15: =AG15*AI15 -> 30
A16: Senior | B16: 40 | C16: 12 | D16: 2 | E16: 10 | G16: 0 | I16: 0 | J16: 0 | K16: 0 | L16: 0 | O16: Senior | P16: 40 | Q16: 12 | R16: 2 | S16: 10 | U16: 1 | W16: =U16*P16 -> 40 | X16: =U16*Q16 -> 12 | Y16: =R16*U16 -> 2 | Z16: =S16*U16 -> 10 | AC16: Senior | AD16: 40 | AE16: 12 | AF16: 2 | AG16: 10 | AI16: 1 | AK16: =AI16*AD16 -> 40 | AL16: =AI16*AE16 -> 12 | AM16: =AF16*AI16 -> 2 | AN16: =AG16*AI16 -> 10
G18: Pezzi | I18: =SUM(I14:I17) -> 160 | J18: =SUM(J14:J17) -> 44 | K18: =SUM(K14:K17) -> 4 | L18: =SUM(L14:L17) -> 30 | M18: =SUM(I18:L18) -> 238 | U18: Pezzi | W18: =SUM(W14:W17) -> 100 | X18: =SUM(X14:X17) -> 28 | Y18: =SUM(Y14:Y17) -> 4 | Z18: =SUM(Z14:Z17) -> 20 | AA18: =SUM(W18:Z18) -> 152 | AI18: Pezzi | AK18: =SUM(AK14:AK17) -> 260 | AL18: =SUM(AL14:AL17) -> 72 | AM18: =SUM(AM14:AM17) -> 8 | AN18: =SUM(AN14:AN17) -> 50 | AO18: =SUM(AK18:AN18) -> 390
G20: Pti | I20: =I18*3 -> 480 | J20: =J18*3 -> 132 | K20: =K18*4 -> 16 | L20: =L18*5 -> 150 | M20: =SUM(I20:L20) -> 778 | U20: Pti | W20: =W18*3 -> 300 | X20: =X18*3 -> 84 | Y20: =Y18*4 -> 16 | Z20: =Z18*5 -> 100 | AA20: =SUM(W20:Z20) -> 500 | AI20: Pti | AK20: =AK18*3 -> 780 | AL20: =AL18*3 -> 216 | AM20: =AM18*4 -> 32 | AN20: =AN18*5 -> 250 | AO20: =SUM(AK20:AN20) -> 1278
A21: Produzione | I21: Quantità | O21: Produzione | W21: Quantità | AC21: Produzione | AK21: Quantità
A22: Nov | B22: Sim | C22: Vik | D22: Vru | E22: St. Gnp | G22: Agenti | I22: Sim | J22: Vik | K22: Vru | L22: St. Gnp | O22: Nov | P22: Sim | Q22: Vik | R22: Vru | S22: St. Gnp | U22: Telelling | W22: Sim | X22: Vik | Y22: Vru | Z22: St. Gnp | AC22: Nov | AD22: Sim | AE22: Vik | AF22: Vru | AG22: St. Gnp | AI22: Totale | AK22: Sim | AL22: Vik | AM22: Vru | AN22: St. Gnp
A23: Base | B23: 20 | C23: 6 | D23: 0 | E23: 5 | G23: 3 | I23: =B23*G23 -> 60 | J23: =C23*G23 -> 18 | K23: =D23*G23 -> 0 | L23: =E23*G23 -> 15 | O23: Base | P23: 20 | Q23: 6 | R23: 0 | S23: 5 | U23: 0 | W23: =P23*U23 -> 0 | X23: =Q23*U23 -> 0 | Y23: =R23*U23 -> 0 | Z23: =S23*U23 -> 0 | AC23: Base | AD23: 20 | AE23: 6 | AF23: 0 | AG23: 5 | AI23: =G23+U23 -> 3 | AK23: =AD23*AI23 -> 60 | AL23: =AE23*AI23 -> 18 | AM23: =AF23*AI23 -> 0 | AN23: =AG23*AI23 -> 15
A24: Adw | B24: 30 | C24: 8 | D24: 1 | E24: 5 | G24: 6 | I24: =G24*B24 -> 180 | J24: =G24*C24 -> 48 | K24: =D24*G24 -> 6 | L24: =E24*G24 -> 30 | O24: Adw | P24: 30 | Q24: 8 | R24: 1 | S24: 5 | U24: 2 | W24: =U24*P24 -> 60 | X24: =U24*Q24 -> 16 | Y24: =R24*U24 -> 2 | Z24: =S24*U24 -> 10 | AC24: Adw | AD24: 30 | AE24: 8 | AF24: 1 | AG24: 5 | AI24: 8 | AK24: =AI24*AD24 -> 240 | AL24: =AI24*AE24 -> 64 | AM24: =AF24*AI24 -> 8 | AN24: =AG24*AI24 -> 40
A25: Senior | B25: 40 | C25: 12 | D25: 2 | E25: 10 | G25: 0 | I25: =G25*B25 -> 0 | J25: =G25*C25 -> 0 | K25: =D25*G25 -> 0 | L25: =E25*G25 -> 0 | O25: Senior | P25: 40 | Q25: 12 | R25: 2 | S25: 10 | U25: 1 | W25: =U25*P25 -> 40 | X25: =U25*Q25 -> 12 | Y25: =R25*U25 -> 2 | Z25: =S25*U25 -> 10 | AC25: Senior | AD25: 40 | AE25: 12 | AF25: 2 | AG25: 10 | AI25: 1 | AK25: =AI25*AD25 -> 40 | AL25: =AI25*AE25 -> 12 | AM25: =AF25*AI25 -> 2 | AN25: =AG25*AI25 -> 10
G27: Pezzi | I27: =SUM(I23:I26) -> 240 | J27: =SUM(J23:J26) -> 66 | K27: =SUM(K23:K26) -> 6 | L27: =SUM(L23:L26) -> 45 | M27: =SUM(I27:L27) -> 357 | U27: Pezzi | W27: =SUM(W23:W26) -> 100 | X27: =SUM(X23:X26) -> 28 | Y27: =SUM(Y23:Y26) -> 4 | Z27: =SUM(Z23:Z26) -> 20 | AA27: =SUM(W27:Z27) -> 152 | AI27: Pezzi | AK27: =SUM(AK23:AK26) -> 340 | AL27: =SUM(AL23:AL26) -> 94 | AM27: =SUM(AM23:AM26) -> 10 | AN27: =SUM(AN23:AN26) -> 65 | AO27: =SUM(AK27:AN27) -> 509
G29: Pti | I29: =I27*3 -> 720 | J29: =J27*3 -> 198 | K29: =K27*4 -> 24 | L29: =L27*5 -> 225 | M29: =SUM(I29:L29) -> 1167 | U29: Pti | W29: =W27*3 -> 300 | X29: =X27*3 -> 84 | Y29: =Y27*4 -> 16 | Z29: =Z27*5 -> 100 | AA29: =SUM(W29:Z29) -> 500 | AI29: Pti | AK29: =AK27*3 -> 1020 | AL29: =AL27*3 -> 282 | AM29: =AM27*4 -> 40 | AN29: =AN27*5 -> 325 | AO29: =SUM(AK29:AN29) -> 1667
A30: Produzione | I30: Quantità | O30: Produzione | W30: Quantità | AC30: Produzione | AK30: Quantità
A31: Dic | B31: Sim | C31: Vik | D31: Vru | E31: St. Gnp | G31: Agenti | I31: Sim | J31: Vik | K31: Vru | L31: St. Gnp | O31: Dic | P31: Sim | Q31: Vik | R31: Vru | S31: St. Gnp | U31: Telelling | W31: Sim | X31: Vik | Y31: Vru | Z31: St. Gnp | AC31: Dic | AD31: Sim | AE31: Vik | AF31: Vru | AG31: St. Gnp | AI31: Totale | AK31: Sim | AL31: Vik | AM31: Vru | AN31: St. Gnp
A32: Base | B32: 20 | C32: 6 | D32: 0 | E32: 5 | G32: 1 | I32: =B32*G32 -> 20 | J32: =C32*G32 -> 6 | K32: =D32*G32 -> 0 | L32: =E32*G32 -> 5 | O32: Base | P32: 20 | Q32: 6 | R32: 0 | S32: 5 | U32: 0 | W32: =P32*U32 -> 0 | X32: =Q32*U32 -> 0 | Y32: =R32*U32 -> 0 | Z32: =S32*U32 -> 0 | AC32: Base | AD32: 20 | AE32: 6 | AF32: 0 | AG32: 5 | AI32: =G32+U32 -> 1 | AK32: =AD32*AI32 -> 20 | AL32: =AE32*AI32 -> 6 | AM32: =AF32*AI32 -> 0 | AN32: =AG32*AI32 -> 5
A33: Adw | B33: 30 | C33: 8 | D33: 1 | E33: 5 | G33: 9 | I33: =G33*B33 -> 270 | J33: =G33*C33 -> 72 | K33: =D33*G33 -> 9 | L33: =E33*G33 -> 45 | O33: Adw | P33: 30 | Q33: 8 | R33: 1 | S33: 5 | U33: 2 | W33: =U33*P33 -> 60 | X33: =U33*Q33 -> 16 | Y33: =R33*U33 -> 2 | Z33: =S33*U33 -> 10 | AC33: Adw | AD33: 30 | AE33: 8 | AF33: 1 | AG33: 5 | AI33: 11 | AK33: =AI33*AD33 -> 330 | AL33: =AI33*AE33 -> 88 | AM33: =AF33*AI33 -> 11 | AN33: =AG33*AI33 -> 55
A34: Senior | B34: 40 | C34: 12 | D34: 2 | E34: 10 | G34: 0 | I34: =G34*B34 -> 0 | J34: =G34*C34 -> 0 | K34: =D34*G34 -> 0 | L34: =E34*G34 -> 0 | O34: Senior | P34: 40 | Q34: 12 | R34: 2 | S34: 10 | U34: 1 | W34: =U34*P34 -> 40 | X34: =U34*Q34 -> 12 | Y34: =R34*U34 -> 2 | Z34: =S34*U34 -> 10 | AC34: Senior | AD34: 40 | AE34: 12 | AF34: 2 | AG34: 10 | AI34: 1 | AK34: =AI34*AD34 -> 40 | AL34: =AI34*AE34 -> 12 | AM34: =AF34*AI34 -> 2 | AN34: =AG34*AI34 -> 10
G36: Pezzi | I36: =SUM(I32:I35) -> 290 | J36: =SUM(J32:J35) -> 78 | K36: =SUM(K32:K35) -> 9 | L36: =SUM(L32:L35) -> 50 | M36: =SUM(I36:L36) -> 427 | U36: Pezzi | W36: =SUM(W32:W35) -> 100 | X36: =SUM(X32:X35) -> 28 | Y36: =SUM(Y32:Y35) -> 4 | Z36: =SUM(Z32:Z35) -> 20 | AA36: =SUM(W36:Z36) -> 152 | AI36: Pezzi | AK36: =SUM(AK32:AK35) -> 390 | AL36: =SUM(AL32:AL35) -> 106 | AM36: =SUM(AM32:AM35) -> 13 | AN36: =SUM(AN32:AN35) -> 70 | AO36: =SUM(AK36:AN36) -> 579
G38: Pti | I38: =I36*3 -> 870 | J38: =J36*3 -> 234 | K38: =K36*4 -> 36 | L38: =L36*5 -> 250 | M38: =SUM(I38:L38) -> 1390 | U38: Pti | W38: =W36*3 -> 300 | X38: =X36*3 -> 84 | Y38: =Y36*4 -> 16 | Z38: =Z36*5 -> 100 | AA38: =SUM(W38:Z38) -> 500 | AI38: Pti | AK38: =AK36*3 -> 1170 | AL38: =AL36*3 -> 318 | AM38: =AM36*4 -> 52 | AN38: =AN36*5 -> 350 | AO38: =SUM(AK38:AN38) -> 1890

Sheet Gara Unica
B2: Contributo FM 2 alla Gara Unica
B5: Mese | C5: Punti
B6: Settembre | C6: 832
B7: Ottobre | C7: 1,064
B8: Novembre | C8: 1,667
B9: Dicembre | C9: 1,890
B11: Punti GU | C11: =SUM(C6:C10) -> 5,453
A13: 10 € | B13: Tgt Low | C13: =C11*10 -> € 54,530.00
A15: 20 € | B15: Tgt High | C15: =C11*20 -> € 109,060.00
A17: 30 € | B17: Tgt xtra | C17: =C11*30 -> € 163,590.00

Sheet Valori medi
B3: Introiti Lordi FM2
B8: Pezzi | C8: Sim | D8: Vik | E8: Vru | F8: St. Gnp
B9: Sett | C9: ='Dettaglio '!AK9 -> 160 | D9: ='Dettaglio '!AL9 -> 48 | E9: ='Dettaglio '!AM9 -> 2 | F9: ='Dettaglio '!AN9 -> 40
B10: Ott | C10: ='Dettaglio '!AK18 -> 260 | D10: ='Dettaglio '!AL18 -> 72 | E10: ='Dettaglio '!AM18 -> 8 | F10: ='Dettaglio '!AN18 -> 50
B11: Nov | C11: ='Dettaglio '!AK27 -> 340 | D11: ='Dettaglio '!AL27 -> 94 | E11: ='Dettaglio '!AM27 -> 10 | F11: ='Dettaglio '!AN27 -> 65
B12: Dic | C12: ='Dettaglio '!AK36 -> 390 | D12: ='Dettaglio '!AL36 -> 106 | E12: ='Dettaglio '!AM36 -> 13 | F12: ='Dettaglio '!AN36 -> 70
C14: =SUM(C9:C13) -> 1,150 | D14: =SUM(D9:D13) -> 320 | E14: 33 | F14: 225
B16: Val medio | C16: € 80.00 | D16: € 35.00 | E16: € 200.00 | F16: € 120.00
C18: =C14*C16 -> € 92,000.00 | D18: =D14*D16 -> € 11,200.00 | E18: € 6,600.00 | F18: € 27,000.00 | H18: =SUM(C18:G18) -> € 136,800.00
G21: ='Gara Unica'!B17 -> Tgt xtra | H21: ='Gara Unica'!C17 -> € 163,590.00
G23: Tot Quart | H23: =SUM(H18:H21) -> € 300,390.00

Sheet Provvigioni Base
B1: Provvigioni Base Agenti
B3: ='Valori medi'!B8 -> Pezzi | C3: ='Valori medi'!C8 -> Sim | D3: ='Valori medi'!D8 -> Vik | E3: ='Valori medi'!E8 -> Vru | F3: ='Valori medi'!F8 -> St. Gnp
B4: ='Valori medi'!B9 -> Sett | C4: ='Dettaglio '!I9 -> 80 | D4: ='Dettaglio '!J9 -> 24 | E4: ='Dettaglio '!K9 -> 0 | F4: ='Dettaglio '!L9 -> 20
B5: ='Valori medi'!B10 -> Ott | C5: ='Dettaglio '!I18 -> 160 | D5: ='Dettaglio '!J18 -> 44 | E5: ='Dettaglio '!K18 -> 4 | F5: ='Dettaglio '!L18 -> 30
B6: ='Valori medi'!B11 -> Nov | C6: ='Dettaglio '!I27 -> 240 | D6: ='Dettaglio '!J27 -> 66 | E6: ='Dettaglio '!K27 -> 6 | F6: ='Dettaglio '!L27 -> 45
B7: ='Valori medi'!B12 -> Dic | C7: ='Dettaglio '!I36 -> 290 | D7: ='Dettaglio '!J36 -> 78 | E7: ='Dettaglio '!K36 -> 9 | F7: ='Dettaglio '!L36 -> 50
B9: Totale | C9: =SUM(C4:C8) -> 770 | D9: =SUM(D4:D8) -> 212 | E9: 19 | F9: 145
B11: Val medio | C11: € 40.00 | D11: € 20.00 | E11: € 120.00 | F11: € 50.00
C13: =C9*C11 -> € 30,800.00 | D13: =D9*D11 -> € 4,240.00 | E13: € 2,280.00 | F13: € 7,250.00 | H13: =SUM(C13:G13) -> € 44,570.00
B15: Provvigioni Base Teleseller
B17: Pezzi | C17: Sim | D17: Vik | E17: Vru | F17: St. Gnp
B18: Sett | C18: 80 | D18: 24 | E18: 0 | F18: 20
B19: Ott | C19: ='Dettaglio '!W27 -> 100 | D19: ='Dettaglio '!X27 -> 28 | E19: ='Dettaglio '!Y27 -> 4 | F19: ='Dettaglio '!Z27 -> 20
B20: Nov | C20: ='Dettaglio '!W27 -> 100 | D20: ='Dettaglio '!X27 -> 28 | E20: ='Dettaglio '!Y27 -> 4 | F20: ='Dettaglio '!Z27 -> 20
B21: Dic | C21: ='Dettaglio '!W36 -> 100 | D21: ='Dettaglio '!X36 -> 28 | E21: ='Dettaglio '!Y36 -> 4 | F21: ='Dettaglio '!Z36 -> 20
B22: Totale | C22: =SUM(C18:C21) -> 380 | D22: =SUM(D18:D21) -> 108 | E22: 12 | F22: 80
B24: Val medio | C24: € 20.00 | D24: € 10.00 | E24: € 60.00 | F24: € 50.00
C26: =C22*C24 -> € 7,600.00 | D26: =D22*D24 -> € 1,080.00 | E26: € 720.00 | F26: € 4,000.00 | H26: =SUM(C26:G26) -> € 13,400.00

Sheet Assegnaz APT
D2: gg lav
C3: Consulenti | D3: 20 | E3: Apt gg | G3: APT Mese | H3: Tot
B5: Sett | C5: 4 | D5: =D3*C5 -> 80 | E5: 3 | G5: =D5*E5 -> 240
B7: Ott | C7: 6 | D7: =D3*C7 -> 120 | E7: 3 | G7: =D7*E7 -> 360
B9: Nov | C9: 9 | D9: =C9*D3 -> 180 | E9: 3 | G9: =D9*E9 -> 540
B11: Dic | C11: 10 | D11: =C11*D3 -> 200 | E11: 3 | G11: =D11*E11 -> 600
G13: =SUM(G5:G11) -> 1740 | H13: =G13*25 -> € 43,500.00
